{"text_format":"3","workbook":"xlsx","n_sheets":18,"sheets":["Deckblatt","Ausgaben, Finanzierung","Belegaufstellung PA Nr. 1","Belegaufstellung PA Nr. 2","Belegaufstellung PA Nr. 3","Belegaufstellung PA Nr. 4","Belegaufstellung PA Nr. 5","Belegaufstellung PA Nr. 6","Angaben zum Personal","Angaben zur Fachkraft","Belegaufstellung SA Nr. 1","Belegaufstellung SA Nr. 2","Belegaufstellung SA Nr. 3","Belegaufstellung SA Nr. 4","Belegaufstellung SA Nr. 5","Belegaufstellung SA Nr. 6","BM","EPM"],"not_rendered":{"defined_names":6,"comments":5},"read":"whole","date_system":"1900"}

{"sheet":"Deckblatt","index":0,"n_rows":44,"n_cols":19,"rows_kept":44,"merged":[[2,10,2,17],[3,0,3,8],[3,10,3,17],[4,0,5,8],[4,10,4,17],[5,10,7,17],[6,0,6,8],[7,0,7,8],[10,10,11,17],[12,10,15,17],[17,0,17,17],[18,0,18,17],[20,0,21,17],[23,8,23,17],[25,3,25,7],[25,8,25,11],[27,3,27,7],[27,8,27,11],[29,3,29,7],[29,8,29,11],[31,3,31,7],[31,8,31,11],[32,0,32,3],[33,0,33,3],[35,0,35,5],[35,7,35,11],[35,13,35,17],[36,0,36,3],[38,0,38,16],[42,1,42,4],[42,12,42,17]]}
["Landeshauptstadt Dresden - Jugendamt",{"$nulls":16},"Anteilsfinanzierung Schulsozialarbeit"]
[]
["Zuwendungsempfänger",{"$nulls":9},"Aktenzeichen:"]
[]
[{"$nulls":10},"Angebotsbezeichnung:"]
[]
[]
[]
[]
[]
["Antrags- und Bewilligungshörde:                                                                                                                                                                                                                                                                                    ",{"$nulls":9},"Abgabefrist: siehe Zuwendungsbescheid"]
["Landeshauptstadt Dresden"]
["Jugendamt, Abt. Kinder-, Jugend- und",{"$nulls":9},"Mit einzureichen sind die Originalbelege und Verträge sortiert entsprechend der Belegaufstellung und der Sachbericht (extra Formular)!"]
["Familienförderung, SG Zuschusswesen"]
["Postfach 12 00 20"]
["01001 Dresden "]
[]
["Verwendungsnachweis Schulsozialarbeit"]
[" - Zahlenmäßiger Nachweis Anteilsfinanzierung -"]
[]
["Hinweis für Nutzer des Excel-Formulars: Die fett gerahmten Felder weisen darauf hin, dass sie auszufüllen sind, andere Felder enthalten Zellenverknüpfungen oder Formeln. Gilt nicht für Nutzer der PDF-Datei (Handausfüller)!"]
[]
[]
["Bewilligungs-/Abrechnungszeitraum:"]
["Abrechnung der Zuwendung:"]
[{"$nulls":3},"Bewilligte Zuwendung:",{"$nulls":8},"Euro"]
[]
[{"$nulls":3},"Ausgezahlte Zuwendung:",{"$nulls":8},"Euro"]
[]
[{"$nulls":3},"Abrechnung der Zuwendung:",{"$nulls":4},{"$f":"'Ausgaben, Finanzierung'!L28","v":0},{"$nulls":3},"Euro",{"$nulls":5}," -> Wertübernahme aus dem Ausgaben- und Finanzierungsplan -  erst die Folgeblätter ausfüllen!"]
[]
[{"$nulls":3},"Erstattungsbetrag:",{"$nulls":4},{"$f":"IF(I28=0,I26-I30,(IF(I30<I28,I28-I30,0)))","v":0},{"$nulls":3},"Euro",{"$nulls":5}," -> selbstrechnendes Feld - das richtige Ergebnis erscheint erst, nachdem Formular vollständig ausgefüllt wurde"]
[]
["Bearbeiter/-in)"]
["Name, Funktion",{"$nulls":6},"Tel.-/Fax-Nr.",{"$nulls":5},"E-Mail-Adresse"]
[]
[]
["Bestätigung des Zuwendungsempfängers"]
["Es wird bestätigt, dass die Ausgaben notwendig waren, wirtschaftlich und sparsam verfahren worde, \ndie Angaben mit den Büchern und Belegen übereinstimmen und die Echtheit der Herkunft und Unversehrtheit des Inhaltes der Belege gewährleistet ist."]
["Es liegt eine Vorsteuerabzugsberechtigung vor: ",{"$nulls":8},"Ja",null,"Nein",null,"(Zutreffendes ankreuzen)"]
["(Die Ausgaben sind - sofern eine  Vorsteuerabzugsberechtigung vorliegt - ohne Umsatzsteuer auszuweisen.)"]
[]
[]
[null,"Ort, Datum",{"$nulls":4},"rechtsverbindliche Unterschrift(en)",{"$nulls":5},"in Block-/PC-Schrift"]

{"sheet":"Ausgaben, Finanzierung","index":1,"n_rows":33,"n_cols":16,"rows_kept":33,"merged":[[0,12,0,14],[1,0,1,14],[3,0,3,14],[4,12,5,14],[6,1,6,8],[6,9,6,11],[6,12,6,14],[7,1,7,8],[7,9,7,11],[7,12,7,14],[8,1,8,8],[8,9,8,11],[8,12,8,14],[9,1,9,8],[9,9,9,11],[9,12,9,14],[10,1,10,8],[10,9,10,11],[10,12,10,14],[11,1,11,8],[11,9,11,11],[11,12,11,14],[12,9,12,11],[12,12,12,14],[13,0,13,14],[14,12,15,14],[16,1,16,8],[16,9,16,11],[16,12,16,14],[17,1,17,8],[17,9,17,11],[17,12,17,14],[18,1,18,8],[18,9,18,11],[18,12,18,14],[19,1,19,8],[19,9,19,11],[19,12,19,14],[20,1,20,8],[20,9,20,11],[20,12,20,14],[21,1,21,8],[21,9,21,11],[21,12,21,14],[22,9,22,11],[22,12,22,14],[23,9,23,11],[23,12,23,14],[25,4,25,11],[25,12,25,13],[26,0,26,6],[26,7,26,10],[26,11,26,14],[27,0,27,6],[27,7,27,10],[27,11,27,14],[28,0,28,6],[28,7,28,10],[28,11,28,14],[29,0,30,1],[29,2,29,6],[29,7,30,10],[29,11,30,14],[30,2,30,6],[31,7,31,10],[31,11,31,14],[32,0,32,6],[32,7,32,10],[32,11,32,14]]}
["Landeshauptstadt Dresden - Jugendamt",{"$nulls":6},{"$f":"Deckblatt!R1","v":"Anteilsfinanzierung Schulsozialarbeit"},{"$nulls":3},"AZ:",{"$f":"Deckblatt!K4","v":0}]
["Ausgaben- und Finanzierungsnachweis"]
[]
["Personalausgaben"]
["Angaben im Zuwendungsbescheid (Ausgabeansätze)",{"$nulls":11},"Verwendungs-\nnachweis\n Beträge aus der Belegaufstellung"]
["Bezeichnung",{"$nulls":8},"in Euro"]
[1,{"$nulls":11},{"$f":"'Belegaufstellung PA Nr. 1'!F27","v":0},null,null,"Betrag wird aus den Folgeblättern übernommen"]
[2,{"$nulls":11},{"$f":"'Belegaufstellung PA Nr. 2'!F27","v":0},null,null,"Betrag wird aus den Folgeblättern übernommen"]
[3,{"$nulls":11},{"$f":"'Belegaufstellung PA Nr. 3'!F27","v":0},null,null,"Betrag wird aus den Folgeblättern übernommen"]
[4,{"$nulls":11},{"$f":"'Belegaufstellung PA Nr. 4'!F27","v":0},null,null,"Betrag wird aus den Folgeblättern übernommen"]
[5,{"$nulls":11},{"$f":"'Belegaufstellung PA Nr. 5'!F27","v":0},null,null,"Betrag wird aus den Folgeblättern übernommen"]
[6,{"$nulls":11},{"$f":"'Belegaufstellung PA Nr. 6'!F27","v":0},null,null,"Betrag wird aus den Folgeblättern übernommen"]
[{"$nulls":8},"Personalausgaben gesamt:",{"$f":"SUM(J7:L12)","v":0},null,null,{"$f":"SUM(M7:O12)","v":0}]
["Sachausgaben"]
["Angaben im Zuwendungsbescheid (Ausgabeansätze)",{"$nulls":11},"Verwendungs-\nnachweis\n Beträge aus der Belegaufstellung"]
["Bezeichnung",{"$nulls":8},"in Euro"]
[1,{"$nulls":11},{"$f":"'Belegaufstellung SA Nr. 1'!F27","v":0},null,null,"Betrag wird aus den Folgeblättern übernommen"]
[2,{"$nulls":11},{"$f":"'Belegaufstellung SA Nr. 2'!F27","v":0},null,null,"Betrag wird aus den Folgeblättern übernommen"]
[3,{"$nulls":11},{"$f":"'Belegaufstellung SA Nr. 3'!F27","v":0},null,null,"Betrag wird aus den Folgeblättern übernommen"]
[4,{"$nulls":11},{"$f":"'Belegaufstellung SA Nr. 4'!F27","v":0},null,null,"Betrag wird aus den Folgeblättern übernommen"]
[5,{"$nulls":11},{"$f":"'Belegaufstellung SA Nr. 5'!F27","v":0},null,null,"Betrag wird aus den Folgeblättern übernommen"]
[6,{"$nulls":14},"Betrag wird aus den Folgeblättern übernommen"]
[{"$nulls":8},"Sachausgaben gesamt:",{"$f":"SUM(J17:L22)","v":0},null,null,{"$f":"SUM(M17:O22)","v":0}]
[{"$nulls":8},"Sach- und Personalausgaben gesamt:",{"$f":"J13+J23","v":0},null,null,{"$f":"M13+M23","v":0}]
[]
["Finanzierung",{"$nulls":3},"Finanzierungsanteil Zuwendungsgeber siehe Zuwendungsbescheid",{"$nulls":9},"%"]
["Finanzierungsquellen",{"$nulls":6},"lt. Zuwendungsbescheid\nin Euro",{"$nulls":3},"Verwendungsnachweis\nin Euro","tatsächlich"]
["Zuwendung\n(Landesmittel + Mittel der Landeshauptstadt Dresden)",{"$nulls":6},{"$f":"Deckblatt!I26","v":0}]
["davon 1,0 VZÄ-Förderung Freistaat Sachsen\n(betrifft nur Oberschulen mit mehr als 1,0 VZÄ)\n-> siehe Regelungen im Zuwendungsbescheid",{"$nulls":6},{"$f":"Deckblatt!I27","v":0},{"$nulls":3},{"$f":"Deckblatt!M27","v":0}]
["weitere Mittel"]
[null,null,"hier benennen"]
["Eigenmittel des Trägers"]
["gesamt",{"$nulls":6},{"$f":"H28+H32","v":0},{"$nulls":3},{"$f":"L28+L30+L32","v":0}]

{"sheet":"Belegaufstellung PA Nr. 1","index":2,"n_rows":27,"n_cols":6,"rows_kept":27,"merged":[[4,2,4,5],[26,0,26,4]]}
["Landeshauptstadt Dresden - Jugendamt",null,null,{"$f":"Deckblatt!R1","v":"Anteilsfinanzierung Schulsozialarbeit"},null,{"$f":"Deckblatt!K4","v":0}]
[]
["Originalbelege je Ausgabegruppe"]
["Die Ausgaben sind in zeitlicher Folge und voneinander getrennt aufzulisten."]
["Personalausgaben Nr. 1:",null,{"$f":"'Ausgaben, Finanzierung'!B7","v":0}]
["Beleg-/ Buchungs-Nr.","Beleg-Datum","Tag der Zahlung","Zahlungs-\nempfänger","Zahlungsgrund \n(Kurzbezeichnung der Ausgabe)","Betrag\nin Euro"]
{"$rows_empty":20}
["Gesamt",{"$nulls":4},{"$f":"SUM(F7:F26)","v":0}]

{"sheet":"Belegaufstellung PA Nr. 2","index":3,"n_rows":27,"n_cols":6,"rows_kept":27,"merged":[[4,2,4,5],[26,0,26,4]]}
["Landeshauptstadt Dresden - Jugendamt",null,null,{"$f":"Deckblatt!R1","v":"Anteilsfinanzierung Schulsozialarbeit"},null,{"$f":"Deckblatt!K4","v":0}]
[]
["Originalbelege je Ausgabegruppe"]
["Die Ausgaben sind in zeitlicher Folge und voneinander getrennt aufzulisten."]
["Personalausgaben Nr. 2:",null,{"$f":"'Ausgaben, Finanzierung'!B8","v":0}]
["Beleg-/ Buchungs-Nr.","Beleg-Datum","Tag der Zahlung","Zahlungs-\nempfänger","Zahlungsgrund\n(Kurzbezeichnung der Ausgabe)","Betrag\nin Euro"]
{"$rows_empty":20}
["Gesamt",{"$nulls":4},{"$f":"SUM(F7:F26)","v":0}]

{"sheet":"Belegaufstellung PA Nr. 3","index":4,"n_rows":27,"n_cols":6,"rows_kept":27,"merged":[[4,2,4,5],[26,0,26,4]]}
["Landeshauptstadt Dresden - Jugendamt",null,null,{"$f":"Deckblatt!R1","v":"Anteilsfinanzierung Schulsozialarbeit"},null,{"$f":"Deckblatt!K4","v":0}]
[]
["Originalbelege je Ausgabegruppe"]
["Die Ausgaben sind in zeitlicher Folge und voneinander getrennt aufzulisten."]
["Personalausgaben Nr. 3:",null,{"$f":"'Ausgaben, Finanzierung'!B9","v":0}]
["Beleg-/ Buchungs-Nr.","Beleg-Datum","Tag der Zahlung","Zahlungs-\nempfänger","Zahlungsgrund\n(Kurzbezeichnung der Ausgabe)","Betrag\nin Euro"]
{"$rows_empty":20}
["Gesamt",{"$nulls":4},{"$f":"SUM(F7:F26)","v":0}]

{"sheet":"Belegaufstellung PA Nr. 4","index":5,"n_rows":27,"n_cols":6,"rows_kept":27,"merged":[[4,2,4,5],[26,0,26,4]]}
["Landeshauptstadt Dresden - Jugendamt",null,null,{"$f":"Deckblatt!R1","v":"Anteilsfinanzierung Schulsozialarbeit"},null,{"$f":"Deckblatt!K4","v":0}]
[]
["Originalbelege je Ausgabegruppe"]
["Die Ausgaben sind in zeitlicher Folge und voneinander getrennt aufzulisten."]
["Personalausgaben Nr. 4:",null,{"$f":"'Ausgaben, Finanzierung'!B10","v":0}]
["Beleg-/ Buchungs-Nr.","Beleg-Datum","Tag der Zahlung","Zahlungs-\nempfänger","Zahlungsgrund \n(Kurzbezeichnung der Ausgabe)","Betrag\nin Euro"]
{"$rows_empty":20}
["Gesamt",{"$nulls":4},{"$f":"SUM(F7:F26)","v":0}]

{"sheet":"Belegaufstellung PA Nr. 5","index":6,"n_rows":27,"n_cols":6,"rows_kept":27,"merged":[[4,2,4,5],[26,0,26,4]]}
["Landeshauptstadt Dresden - Jugendamt",null,null,{"$f":"Deckblatt!R1","v":"Anteilsfinanzierung Schulsozialarbeit"},null,{"$f":"Deckblatt!K4","v":0}]
[]
["Originalbelege je Ausgabegruppe"]
["Die Ausgaben sind in zeitlicher Folge und voneinander getrennt aufzulisten."]
["Personalausgaben Nr. 5:",null,{"$f":"'Ausgaben, Finanzierung'!B11","v":0}]
["Beleg-/ Buchungs-Nr.","Beleg-Datum","Tag der Zahlung","Zahlungs-\nempfänger","Zahlungsgrund \n(Kurzbezeichnung der Ausgabe)","Betrag\nin Euro"]
{"$rows_empty":20}
["Gesamt",{"$nulls":4},{"$f":"SUM(F7:F26)","v":0}]

{"sheet":"Belegaufstellung PA Nr. 6","index":7,"n_rows":27,"n_cols":6,"rows_kept":27,"merged":[[4,2,4,5],[26,0,26,4]]}
["Landeshauptstadt Dresden - Jugendamt",null,null,{"$f":"Deckblatt!R1","v":"Anteilsfinanzierung Schulsozialarbeit"},null,{"$f":"Deckblatt!K4","v":0}]
[]
["Originalbelege je Ausgabegruppe"]
["Die Ausgaben sind in zeitlicher Folge und voneinander getrennt aufzulisten."]
["Personalausgaben Nr. 6:",null,{"$f":"'Ausgaben, Finanzierung'!B12","v":0}]
["Beleg-/ Buchungs-Nr.","Beleg-Datum","Tag der Zahlung","Zahlungs-\nempfänger","Zahlungsgrund\n(Kurzbezeichnung der Ausgabe)","Betrag\nin Euro"]
{"$rows_empty":20}
["Gesamt",{"$nulls":4},{"$f":"SUM(F7:F26)","v":0}]

{"sheet":"Angaben zum Personal","index":8,"n_rows":14,"n_cols":9,"rows_kept":14,"merged":[[3,2,3,3],[4,2,4,3],[5,2,5,3],[6,2,6,3],[7,2,7,3],[8,2,8,3],[9,0,9,4],[10,0,10,1],[10,2,10,3],[11,0,11,6]]}
["Landeshauptstadt Dresden - Jugendamt",{"$nulls":4},{"$f":"Deckblatt!R1","v":"Anteilsfinanzierung Schulsozialarbeit"},null,"AZ:",{"$f":"Deckblatt!K4","v":0}]
["Angaben zu den geförderten Fachkräften"]
["lfd. Nr.","Name, Vorname","Æ","wöch. Arb.z.in Std.*","in VZÄ","Ausgaben\nin Euro","Ausgaben enthalten leistungsorientierte Bezahlung gemäß \n§ 18 TVöD i. H. v.\nin Euro","Ausgaben enthalten Zuschläge i. H. v.\nin Euro","Art der Zuschläge/Zulagen"]
[1]
[2]
[3]
[4]
[5]
[6]
["Berufsgenossenschaft \n(i. d. R. des Vorjahres, Ausgabenanfall aber im Abrechnungszeitraum, jedoch nach dem 28.02.)"]
["Summe",null,{"$f":"SUM(C4:D9)","v":0},null,{"$f":"SUM(E4:E9)","v":0},{"$f":"SUM(F4:F10)","v":0},{"$f":"SUM(G4:G9)","v":0},{"$f":"SUM(H4:H9)","v":0}]
["* Die geforderte regelmäßige wöchentliche Arbeitszeit bleibt von dem Ergebnis (Jahresdurchschnitt) unberührt."]
[]
[{"$nulls":5},{"$f":"IF(F11<>'Ausgaben, Finanzierung'!M13,\"Fehler: Die Ausgaben lt. Belegaufstellung entsprechen nicht den hier dargestellten Ausgaben!\",\"\")","v":""}]

{"sheet":"Angaben zur Fachkraft","index":9,"n_rows":58,"n_cols":22,"rows_kept":58,"merged":[[0,13,0,15],[2,12,2,13],[3,17,20,22],[6,0,6,4],[6,6,6,8],[6,10,6,15],[8,15,38,15],[9,2,9,3],[9,4,9,6],[9,7,9,9],[12,0,13,8],[15,0,16,8],[18,0,19,8],[22,9,22,13],[23,2,23,3],[23,5,23,7],[23,9,23,14],[26,8,27,13],[27,4,28,5],[29,1,29,14],[30,0,30,10],[30,13,32,14],[34,0,34,2],[34,3,34,4],[34,5,34,6],[34,7,34,8],[34,9,34,10],[34,11,34,12],[34,13,34,14],[38,0,38,2],[38,3,38,5],[38,11,38,13],[41,8,41,9],[44,0,44,2],[44,3,44,4],[44,5,44,6],[44,8,44,10],[44,11,44,12],[44,13,44,14],[44,16,44,18],[44,19,44,20],[44,21,44,22],[46,0,46,2],[46,3,46,4],[46,5,46,6],[46,8,46,10],[46,11,46,12],[46,13,46,14],[46,16,46,18],[46,19,46,20],[46,21,46,22],[48,0,48,2],[48,3,48,4],[48,5,48,6],[48,8,48,10],[48,11,48,12],[48,13,48,14],[52,0,52,3],[52,4,52,6],[52,7,53,8],[52,9,53,10],[52,11,52,12],[52,13,53,14],[54,7,54,8],[54,9,54,10],[54,13,54,14],[55,0,55,3],[55,4,55,8],[55,9,57,11],[55,12,58,14],[56,0,56,3],[56,4,56,8],[57,4,57,8]]}
["Landeshauptstadt Dresden - Jugendamt",{"$nulls":6},{"$f":"Deckblatt!R1","v":"Anteilsfinanzierung Schulsozialarbeit"},{"$nulls":4},"Az:",{"$f":"Deckblatt!K4","v":0}]
[]
[{"$nulls":7},"Angaben zur geförderten Fachkraft",{"$nulls":4},{"$f":"Deckblatt!I24","v":0}]
["Sollten Angaben der Bewilligungsbehörde noch nicht vorliegen, ist dieses Blatt mit einzureichen. Zutreffendes ist anzukreuzen.",{"$nulls":16},"Sollten mehrere Blätter benötigt werden, ist das Blatt zu kopieren (es enthält keine Verknüpfungen zu anderen Blättern).\n\nBlatt kopieren und in die Arbeitsmappe einfügen: Tabellenreiter \"Angaben zur Fachkraft\"\" mit linker Maus-Taste anklicken - Maus auf dem Reiter halten und nun rechte Maus-Taste klicken - im sich öffnenden Fenster verschieben/kopieren anklicken - im sich öffnenden Fenster unten \"Kopie erstellen\" anklicken und bei \"Einfügen vor:\" auswählen, wo das Blatt eingefügt werden soll."]
[]
["Name, Vorname",{"$nulls":5},"Geburtsdatum",{"$nulls":3},"Stellen-/Tätigkeitsbezeichnung"]
[]
[]
["Stellenbeschreibung"]
["ist beigefügt",null,"oder",null,"Stellenbeschreibung liegt\ndem Amt vor mit Datum: ",{"$nulls":6},"Sie behält ihre Gültigkeit:"]
["Ausbildung"]
["Abschluss:"]
[{"$nulls":9},"Kopie* des Abschlusses:"]
[{"$nulls":9},"ist beigefügt:",null,null,"liegt dem Amt vor:"]
["berufsbegleitende Ausbildung:"]
[{"$nulls":9},"Immatrikulationsbescheinigung:"]
[{"$nulls":9},"ist beigefügt:",null,null,"liegt dem Amt vor:"]
["Zusatzqualifikationen:"]
[{"$nulls":9},"Kopie*:"]
[{"$nulls":9},"ist beigefügt:",null,null,"liegt dem Amt vor:"]
["*Die kopierten Qualifikationsnachweise müssen mit dem Vermerk des Trägers \"Das Original hat am ... (Datum) vorgelegen\" versehen sein."]
["Vergütung"]
["in Anlehnung an den Tarif öffentlicher Dienst (TVöD bzw. TVÜ-VKA)",{"$nulls":8},"anderer Tarifvertrag (Bezeichnung)"]
["Entgeltgruppe:",{"$nulls":4},"übergeleitete(r)  Beschäftigte(r)"]
[]
["Sozialdaten (nur für \"übergeleitete Beschäftigte\")"]
["Familienstand:",null,"ledig",null,"verheiratet",null,"verwitwet",null,"Ehepartner im öffentlichen Dienst  bzw. nach dem Überleitungstarifvertrag des TVöD vergütet:"]
["Stichtag 30.09.2005",{"$nulls":3},"geschieden"]
[]
["Kinder: ","(Angaben sind für alle übergeleitete Beschäftigte zu leisten; es sind nur die Kinder zu berücksichtigen, die bis zum 31.12.2005 geboren wurden)"]
["1. Anzahl der Kinder, für welche der/die Beschäftigte im Antragszeitraum Kindergeld erhält:"]
["                       "]
[]
[]
["Geb.daten der zu berücksichtigenden Kinder:"]
[{"$nulls":3},"1. Kind",null,"2. Kind",null,"3. Kind",null,"4. Kind",null,"5. Kind",null,"6. Kind"]
["Beschäftigungszeit"]
[]
["in der o. g. Tätigkeit beschäftigt seit: ",{"$nulls":5},"Aufnahme der Tätigkeit im Angebot am:"]
[]
["Arbeitsumfang ",{"$nulls":7},"Jahresdurchschnitt:",{"$nulls":3},"in VK:"]
["Regelmäßige wöchentliche Arbeitszeit:",{"$nulls":7},{"$f":"ROUND((F45/12*D45)+(N45/12*L45)+(F47/12*D47)+(N47/12*L47)+(F49/12*D49)+(N49/12*L49),2)","v":0},null,"h/Woche",null,{"$f":"ROUND(I42/40,2)","v":0},{"$nulls":3},"Bsp.:"]
[]
["Datum (von - bis)",null,null," in Monaten",null,"Std./Woche",null,null,"Datum (von - bis)",null,null," in Monaten",null,"Std./Woche",null,null,"Datum (von - bis)",null,null," in Monaten",null,"Std./Woche"]
[{"$nulls":16},"01.01. - 31.03.",null,null,{"v":3,"d":"3.00"},null,"20"]
["Datum (von - bis)",null,null," in Monaten",null,"Std./Woche",null,null,"Datum (von - bis)",null,null," in Monaten",null,"Std./Woche",null,null,"Datum (von - bis)",null,null," in Monaten",null,"Std./Woche"]
[{"$nulls":16},"01.04. - 15.10.",null,null,{"v":6.5,"d":"6.50"},null,"40"]
["Datum (von - bis)",null,null," in Monaten",null,"Std./Woche",null,null,"Datum (von - bis)",null,null," in Monaten",null,"Std./Woche"]
[{"$nulls":16},{"$f":"IF((D45+L45+D47+L47+D49+L49)>12,\"zu viele Monate!\",\"\")","v":""}]
[]
["Lohnnebenkosten etc.",{"$nulls":3},"geringfügig beschäftigt (Minijob)"]
[]
["AG-Anteile SV in %",{"$nulls":3},"Umlage-Verfahren der Krankenkassen in %",null,null,"AG-Prozentsatz gesamt",null,"AG-Anteile ges.               in EUR",null,"VWL in EUR",null,"bAV/Jahr                 in EUR"]
["PV","RV","AV","KV","U1","U2","IU",{"$nulls":4},"im Monat","im Jahr"]
[{"$nulls":7},{"$f":"SUM(A55:G55)","v":0}]
["PV: Pflegeversicherung                                RV: Rentenversicherung",{"$nulls":3},"U1: Lohnfortzahl.verfahren der Krankenkassen im Krankheitsfall",{"$nulls":4},"VWL: Vermögens- wirksame Leistungen für 1,0 VK > max. 6,65 € pro Monat",null,null,"bAV: die Arbeit-geberaufwen-dungen für eine betriebl. Alters-vorsorge sind max. in Höhe der städtischen Altersvorsorge (ZVK) zuwendungsfähig. "]
["AV: Arbeitslosenversicherung                         KV: Krankenversicherung",{"$nulls":3},"U2: Lohnfortzahlungsverfahren der Krankenkassen bei Mutterschaft"]
[{"$nulls":4},"IU: Insolvenzgeldumlage an die KK (ausgenommen Körperschaften des öff. Rechts)"]

{"sheet":"Belegaufstellung SA Nr. 1","index":10,"n_rows":27,"n_cols":6,"rows_kept":27,"merged":[[4,2,4,5],[26,0,26,4]]}
["Landeshauptstadt Dresden - Jugendamt",null,null,{"$f":"Deckblatt!R1","v":"Anteilsfinanzierung Schulsozialarbeit"},null,{"$f":"Deckblatt!K4","v":0}]
[]
["Originalbelege je Ausgabegruppe"]
["Die Ausgaben sind in zeitlicher Folge und voneinander getrennt aufzulisten."]
["Sachausgaben Nr. 1:",null,{"$f":"'Ausgaben, Finanzierung'!B17","v":0}]
["Beleg-/ Buchungs-Nr.","Beleg-Datum","Tag der Zahlung","Zahlungs-\nempfänger","Zahlungsgrund \n(Kurzbezeichnung der Ausgabe)","Betrag\nin Euro"]
{"$rows_empty":20}
["Gesamt",{"$nulls":4},{"$f":"SUM(F7:F26)","v":0}]

{"sheet":"Belegaufstellung SA Nr. 2","index":11,"n_rows":27,"n_cols":6,"rows_kept":27,"merged":[[4,2,4,5],[26,0,26,4]]}
["Landeshauptstadt Dresden - Jugendamt",null,null,{"$f":"Deckblatt!R1","v":"Anteilsfinanzierung Schulsozialarbeit"},null,{"$f":"Deckblatt!K4","v":0}]
[]
["Originalbelege je Ausgabegruppe"]
["Die Ausgaben sind in zeitlicher Folge und voneinander getrennt aufzulisten."]
["Sachausgaben Nr. 2:",null,{"$f":"'Ausgaben, Finanzierung'!B18","v":0}]
["Beleg-/ Buchungs-Nr.","Beleg-Datum","Tag der Zahlung","Zahlungs-\nempfänger","Zahlungsgrund \n(Kurzbezeichnung der Ausgabe)","Betrag\nin Euro"]
{"$rows_empty":20}
["Gesamt",{"$nulls":4},{"$f":"SUM(F7:F26)","v":0}]

{"sheet":"Belegaufstellung SA Nr. 3","index":12,"n_rows":27,"n_cols":6,"rows_kept":27,"merged":[[4,0,4,5],[5,2,5,5],[26,0,26,4]]}
["Landeshauptstadt Dresden - Jugendamt",null,null,{"$f":"Deckblatt!R1","v":"Anteilsfinanzierung Schulsozialarbeit"},null,{"$f":"Deckblatt!K4","v":0}]
[]
["Originalbelege je Ausgabegruppe"]
["Die Ausgaben sind in zeitlicher Folge und voneinander getrennt aufzulisten."]
["Werden Bildungsmaßnahmen oder erlebnispädagogische Maßnahmen abgerechnet, unterliegen diese weiteren Zuwendungsbetimmungen (Anlage Zuwendungsbescheid). Hierfür sind zusätzlich die Folgeblätter BM, EPM auszufüllen und die Teilnahmeliste mit dem Verwendungsnachweis einzureichen."]
["Sachausgaben Nr. 3:",null,{"$f":"'Ausgaben, Finanzierung'!B19","v":0}]
["Beleg-/ Buchungs-Nr.","Beleg-Datum","Tag der Zahlung","Zahlungs-\nempfänger","Zahlungsgrund (Kurzbezeichnung der Ausgabe)","Betrag\nin Euro"]
{"$rows_empty":19}
["Gesamt",{"$nulls":4},{"$f":"SUM(F8:F26)","v":0}]

{"sheet":"Belegaufstellung SA Nr. 4","index":13,"n_rows":27,"n_cols":6,"rows_kept":27,"merged":[[4,0,4,5],[5,2,5,5],[26,0,26,4]]}
["Landeshauptstadt Dresden - Jugendamt",null,null,{"$f":"Deckblatt!R1","v":"Anteilsfinanzierung Schulsozialarbeit"},null,{"$f":"Deckblatt!K4","v":0}]
[]
["Originalbelege je Ausgabegruppe"]
["Die Ausgaben sind in zeitlicher Folge und voneinander getrennt aufzulisten."]
["Werden Bildungsmaßnahmen oder erlebnispädagogische Maßnahmen abgerechnet, unterliegen diese weiteren Zuwendungsbetimmungen (Anlage Zuwendungsbescheid). Hierfür sind zusätzlich die Folgeblätter BM, EPM auszufüllen und die Teilnahmeliste mit dem Verwendungsnachweis einzureichen."]
["Sachausgaben Nr. 4:",null,{"$f":"'Ausgaben, Finanzierung'!B20","v":0}]
["Beleg-/ Buchungs-Nr.","Beleg-Datum","Tag der Zahlung","Zahlungs-\nempfänger","Zahlungsgrund (Kurzbezeichnung der Ausgabe)","Betrag\nin Euro"]
{"$rows_empty":19}
["Gesamt",{"$nulls":4},{"$f":"SUM(F8:F26)","v":0}]

{"sheet":"Belegaufstellung SA Nr. 5","index":14,"n_rows":27,"n_cols":6,"rows_kept":27,"merged":[[4,0,4,5],[5,2,5,5],[26,0,26,4]]}
["Landeshauptstadt Dresden - Jugendamt",null,null,{"$f":"Deckblatt!R1","v":"Anteilsfinanzierung Schulsozialarbeit"},null,{"$f":"Deckblatt!K4","v":0}]
[]
["Originalbelege je Ausgabegruppe"]
["Die Ausgaben sind in zeitlicher Folge und voneinander getrennt aufzulisten."]
["Werden Bildungsmaßnahmen oder erlebnispädagogische Maßnahmen abgerechnet, unterliegen diese weiteren Zuwendungsbetimmungen (Anlage Zuwendungsbescheid). Hierfür sind zusätzlich die Folgeblätter BM, EPM auszufüllen und die Teilnahmeliste mit dem Verwendungsnachweis einzureichen."]
["Sachausgaben Nr. 5:",null,{"$f":"'Ausgaben, Finanzierung'!B21","v":0}]
["Beleg-/ Buchungs-Nr.","Beleg-Datum","Tag der Zahlung","Zahlungs-\nempfänger","Zahlungsgrund (Kurzbezeichnung der Ausgabe)","Betrag\nin Euro"]
{"$rows_empty":19}
["Gesamt",{"$nulls":4},{"$f":"SUM(F8:F26)","v":0}]

{"sheet":"Belegaufstellung SA Nr. 6","index":15,"n_rows":27,"n_cols":6,"rows_kept":27,"merged":[[4,0,4,5],[5,2,5,5],[26,0,26,4]]}
["Landeshauptstadt Dresden - Jugendamt",null,null,{"$f":"Deckblatt!R1","v":"Anteilsfinanzierung Schulsozialarbeit"},null,{"$f":"Deckblatt!K4","v":0}]
[]
["Originalbelege je Ausgabegruppe"]
["Die Ausgaben sind in zeitlicher Folge und voneinander getrennt aufzulisten."]
["Werden Bildungsmaßnahmen oder erlebnispädagogische Maßnahmen abgerechnet, unterliegen diese weiteren Zuwendungsbetimmungen (Anlage Zuwendungsbescheid). Hierfür sind zusätzlich die Folgeblätter BM, EPM auszufüllen und die Teilnahmeliste mit dem Verwendungsnachweis einzureichen."]
["Sachausgaben Nr. 6:",null,{"$f":"'Ausgaben, Finanzierung'!B22","v":0}]
["Beleg-/ Buchungs-Nr.","Beleg-Datum","Tag der Zahlung","Zahlungs-\nempfänger","Zahlungsgrund (Kurzbezeichnung der Ausgabe)","Betrag\nin Euro"]
{"$rows_empty":19}
["Gesamt",{"$nulls":4},{"$f":"SUM(F8:F26)","v":0}]

{"sheet":"BM","index":16,"n_rows":45,"n_cols":15,"rows_kept":45,"merged":[[0,13,0,16],[2,0,2,16],[3,0,3,16],[5,0,6,0],[5,1,6,3],[5,6,6,7],[5,11,5,13],[5,14,5,16],[6,11,6,13],[6,14,6,16],[7,0,11,0],[7,10,8,10],[7,11,8,13],[7,14,8,16],[8,1,9,4],[8,5,9,5],[8,6,9,8],[8,9,9,9],[9,10,10,10],[9,11,10,13],[9,14,10,16],[10,1,11,4],[10,5,11,5],[10,6,11,8],[10,9,11,9],[11,10,12,10],[11,11,12,13],[11,14,12,16],[12,0,14,5],[12,6,12,7],[12,8,12,9],[13,6,14,7],[13,8,14,9],[13,10,14,10],[13,11,14,13],[13,14,14,16],[15,0,15,16],[16,0,16,16],[18,0,19,0],[18,1,19,3],[18,6,19,7],[18,11,18,13],[18,14,18,16],[19,11,19,13],[19,14,19,16],[20,0,24,0],[20,10,21,10],[20,11,21,13],[20,14,21,16],[21,1,22,4],[21,5,22,5],[21,6,22,8],[21,9,22,9],[22,10,23,10],[22,11,23,13],[22,14,23,16],[23,1,24,4],[23,5,24,5],[23,6,24,8],[23,9,24,9],[24,10,25,10],[24,11,25,13],[24,14,25,16],[25,0,27,5],[25,6,25,7],[25,8,25,9],[26,6,27,7],[26,8,27,9],[26,10,27,10],[26,11,27,13],[26,14,27,16],[28,0,28,16],[29,0,29,16],[31,0,32,0],[31,1,32,3],[31,6,32,7],[31,11,31,13],[31,14,31,16],[32,11,32,13],[32,14,32,16],[33,0,37,0],[33,10,34,10],[33,11,34,13],[33,14,34,16],[34,1,35,4],[34,5,35,5],[34,6,35,8],[34,9,35,9],[35,10,36,10],[35,11,36,13],[35,14,36,16],[36,1,37,4],[36,5,37,5],[36,6,37,8],[36,9,37,9],[37,10,38,10],[37,11,38,13],[37,14,38,16],[38,0,40,5],[38,6,38,7],[38,8,38,9],[39,6,40,7],[39,8,40,9],[39,10,40,10],[39,11,40,13],[39,14,40,16],[41,0,41,16],[42,0,42,16]]}
["Landeshauptstadt Dresden - Jugendamt",{"$nulls":8},{"$f":"Deckblatt!R1","v":"Anteilsfinanzierung Schulsozialarbeit"},null,null,"AZ:",{"$f":"Deckblatt!K4","v":0}]
[]
["Bildungsmaßnahmen (Teilnahmelisten beifügen!)"]
["Seminare/Exkursionen mit mind. 6 Seminar-/Exkursionsstunden pro Tag"]
[]
["1.","Tage ohne                             Übernachtung:",null,null,"Tage","TN*","Tage mit                                        Übernachtung:",null,"Anzahl der Ü","TN*","Ausgaben ","in EUR",null,null,"max. möglicher Zuschuss"]
[{"$nulls":10},"Honorarkosten",{"$nulls":3},{"$f":"IF(((F9+F11+J9+J11)*25)>L7,L7,((F9+F11+J9+J11)*25))","v":0}]
["Referenten","Name, Vorname",{"$nulls":3},"Stunden","Name, Vorname",null,null,"Stunden","Fahrt-, Reise-,                     Transportkosten",{"$nulls":3},{"$f":"IF(E7+F7+I7+J7=0,0,L8*35/100)","v":0}]
[]
[{"$nulls":10},"Betreuerkosten",{"$nulls":3},{"$f":"IF((O12*12.5/100)<L10,(O12*12.5/100),L10)","v":0}]
[]
[{"$nulls":10},"weitere Ausgaben (z. B. f. Unterkunft, Programmkosten)",{"$nulls":3},{"$f":"(E7*F7*5)+(I7*J7*10)","v":0}]
["eingenommene Teilnahmebeiträge",{"$nulls":5},"EUR pro Person",null,"EUR gesamt"]
[{"$nulls":10},"Summe",{"$f":"SUM(L7:N12)","v":0},null,null,{"$f":"IF(L14-I14<          (IF((SUM(O7:Q13))>L14,L14,(SUM(O7:Q13)))), L14-I14,  (IF((SUM(O7:Q13))>L14,L14,(SUM(O7:Q13)))))","v":0}]
[]
["Kurzbeschreibung (Inhalt, Zielgruppe, Datum von-bis)"]
[]
[]
["2.","Tage ohne                             Übernachtung:",null,null,"Tage","TN*","Tage mit                                        Übernachtung:",null,"Anzahl der Ü","TN*","Ausgaben ","in EUR",null,null,"max. möglicher Zuschuss"]
[{"$nulls":10},"Honorarkosten",{"$nulls":3},{"$f":"IF(((F22+F24+J22+J24)*25)>L20,L20,((F22+F24+J22+J24)*25))","v":0}]
["Referenten","Name, Vorname",{"$nulls":3},"Stunden","Name, Vorname",null,null,"Stunden","Fahrt-, Reise-,                     Transportkosten",{"$nulls":3},{"$f":"IF(E20+F20+I20+J20=0,0,L21*35/100)","v":0}]
[]
[{"$nulls":10},"Betreuerkosten",{"$nulls":3},{"$f":"IF((O25*12.5/100)<L23,(O25*12.5/100),L23)","v":0}]
[]
[{"$nulls":10},"weitere Ausgaben (z. B. f. Unterkunft, Programmkosten)",{"$nulls":3},{"$f":"(E20*F20*5)+(I20*J20*10)","v":0}]
["eingenommene Teilnahmebeiträge",{"$nulls":5},"EUR pro Person",null,"EUR gesamt"]
[{"$nulls":10},"Summe",{"$f":"SUM(L20:N25)","v":0},null,null,{"$f":"IF(L27-I27<          (IF((SUM(O20:Q26))>L27,L27,(SUM(O20:Q26)))), L27-I27,  (IF((SUM(O20:Q26))>L27,L27,(SUM(O20:Q26)))))","v":0}]
[]
["Kurzbeschreibung (Inhalt, Zielgruppe, Datum von-bis)"]
[]
[]
["3.","Tage ohne                             Übernachtung:",null,null,"Tage","TN*","Tage mit                                        Übernachtung:",null,"Anzahl der Ü","TN*","Ausgaben ","in EUR",null,null,"max. möglicher Zuschuss"]
[{"$nulls":10},"Honorarkosten",{"$nulls":3},{"$f":"IF(((F35+F37+J35+J37)*25)>L33,L33,((F35+F37+J35+J37)*25))","v":0}]
["Referenten","Name, Vorname",{"$nulls":3},"Stunden","Name, Vorname",null,null,"Stunden","Fahrt-, Reise-,                     Transportkosten",{"$nulls":3},{"$f":"IF(E33+F33+I33+J33=0,0,L34*35/100)","v":0}]
[]
[{"$nulls":10},"Betreuerkosten",{"$nulls":3},{"$f":"IF((O38*12.5/100)<L36,(O38*12.5/100),L36)","v":0}]
[]
[{"$nulls":10},"weitere Ausgaben (z. B. f. Unterkunft, Programmkosten)",{"$nulls":3},{"$f":"(E33*F33*5)+(I33*J33*10)","v":0}]
["eingenommene Teilnahmebeiträge",{"$nulls":5},"EUR pro Person",null,"EUR gesamt"]
[{"$nulls":10},"Summe",{"$f":"SUM(L33:N38)","v":0},null,null,{"$f":"IF(L40-I40<          (IF((SUM(O33:Q39))>L40,L40,(SUM(O33:Q39)))), L40-I40,  (IF((SUM(O33:Q39))>L40,L40,(SUM(O33:Q39)))))","v":0}]
[]
["Kurzbeschreibung (Inhalt, Zielgruppe, Datum von-bis)"]
[]
["Die Beschreibung der Maßnahmen kann auch formlos auf einem extra Blatt erfolgen."]
["*TN: Teilnehmer/-innen"]

{"sheet":"EPM","index":17,"n_rows":44,"n_cols":19,"rows_kept":44,"merged":[[0,13,0,16],[2,0,2,16],[4,0,5,0],[4,1,5,3],[4,6,5,7],[4,11,4,13],[4,14,4,16],[4,18,7,24],[5,11,5,13],[5,14,5,16],[6,0,7,5],[6,6,6,7],[6,8,6,9],[6,10,7,10],[6,11,7,13],[6,14,7,16],[7,6,7,7],[7,8,7,9],[8,10,9,10],[8,11,9,13],[8,14,9,16],[9,0,10,9],[10,11,10,13],[10,14,10,16],[12,0,13,0],[12,1,13,3],[12,6,13,7],[12,11,12,13],[12,14,12,16],[13,11,13,13],[13,14,13,16],[14,0,15,5],[14,6,14,7],[14,8,14,9],[14,10,15,10],[14,11,15,13],[14,14,15,16],[15,6,15,7],[15,8,15,9],[16,10,17,10],[16,11,17,13],[16,14,17,16],[17,0,18,9],[18,11,18,13],[18,14,18,16],[20,0,21,0],[20,1,21,3],[20,6,21,7],[20,11,20,13],[20,14,20,16],[21,11,21,13],[21,14,21,16],[22,0,23,5],[22,6,22,7],[22,8,22,9],[22,10,23,10],[22,11,23,13],[22,14,23,16],[23,6,23,7],[23,8,23,9],[24,10,25,10],[24,11,25,13],[24,14,25,16],[25,0,26,9],[26,11,26,13],[26,14,26,16],[28,0,29,0],[28,1,29,3],[28,6,29,7],[28,11,28,13],[28,14,28,16],[29,11,29,13],[29,14,29,16],[30,0,31,5],[30,6,30,7],[30,8,30,9],[30,10,31,10],[30,11,31,13],[30,14,31,16],[31,6,31,7],[31,8,31,9],[32,10,33,10],[32,11,33,13],[32,14,33,16],[33,0,34,9],[34,11,34,13],[34,14,34,16],[36,0,37,0],[36,1,37,3],[36,6,37,7],[36,11,36,13],[36,14,36,16],[37,11,37,13],[37,14,37,16],[38,0,39,5],[38,6,38,7],[38,8,38,9],[38,10,39,10],[38,11,39,13],[38,14,39,16],[39,6,39,7],[39,8,39,9],[40,10,41,10],[40,11,41,13],[40,14,41,16],[41,0,42,9],[42,11,42,13],[42,14,42,16],[43,0,43,9],[44,0,44,9]]}
["Landeshauptstadt Dresden - Jugendamt",{"$nulls":8},{"$f":"Deckblatt!R1","v":"Anteilsfinanzierung Schulsozialarbeit"},null,null,"AZ:",{"$f":"Deckblatt!K4","v":0}]
[]
["Erlebnispädagogische Maßnahmen (Teilnahmelisten beifügen!)"]
[]
["1.","Tage ohne                             Übernachtung:",null,null,"Tage","TN*","Tage mit                                        Übernachtung:",null,"Anzahl der Ü","TN*","Ausgaben ","in EUR",null,null,"max. möglicher Zuschuss",{"$nulls":3},"Ein Maßnahmetag + 1 Nacht wird als eine Übernachtung gezählt. Es werden bis zu 10 EUR/TN gewährt. Beginnt jedoch z. B. eine Maßnahme bereits früh und endet an einem anderen Tag abends, dann kann 1 Tag + 1 Übernachtung je TN geltend gemacht werden (= 15 EUR). "]
[{"$nulls":10},"Fahrt-, Reise-,                     Transportkosten",{"$nulls":3},{"$f":"L6*35/100","v":0}]
["eingenommene Teilnahmebeiträge",{"$nulls":5},"EUR pro Person",null,"EUR gesamt",null,"Betreuerkosten",{"$nulls":3},{"$f":"IF((((E6*F6*5)+(I6*J6*10))*20/100)>L7,L7,(((E6*F6*5)+(I6*J6*10))*20/100))","v":0}]
[]
["Kurzbeschreibung (Inhalt, Zielgruppe, Datum von-bis)",{"$nulls":9},"weitere Ausgaben (z. B. f. Unterkunft, Programmkosten)",{"$nulls":3},{"$f":"(E6*F6*5)+(I6*J6*10)","v":0}]
[]
[{"$nulls":10},"Summe",{"$f":"SUM(L6:N9)","v":0},null,null,{"$f":"IF(E6+I6>4,0,(IF(J6+F6<5,0,(IF(L11-I8<(IF(L11<(SUM(O6:Q9)),L11,(SUM(O6:Q9)))),L11-I8, (IF(L11<(SUM(O6:Q9)),L11,(SUM(O6:Q9)))))))))","v":0}]
[]
["2.","Tage ohne                             Übernachtung:",null,null,"Tage","TN*","Tage mit                                        Übernachtung:",null,"Anzahl der Ü","TN*","Ausgaben ","in EUR",null,null,"max. möglicher Zuschuss"]
[{"$nulls":10},"Fahrt-, Reise-,                     Transportkosten",{"v":100,"d":"100.00"},null,null,{"$f":"L14*35/100","v":{"v":35,"d":"35.00"}}]
["eingenommene Teilnahmebeiträge",{"$nulls":5},"EUR pro Person",null,"EUR gesamt",null,"Betreuerkosten",{"v":100,"d":"100.00"},null,null,{"$f":"IF((((E14*F14*5)+(I14*J14*10))*20/100)>L15,L15,(((E14*F14*5)+(I14*J14*10))*20/100))","v":0}]
[]
["Kurzbeschreibung (Inhalt, Zielgruppe, Datum von-bis)",{"$nulls":9},"weitere Ausgaben (z. B. f. Unterkunft, Programmkosten)",{"v":100,"d":"100.00"},null,null,{"$f":"(E14*F14*5)+(I14*J14*10)","v":0}]
[]
[{"$nulls":10},"Summe",{"$f":"SUM(L14:N17)","v":{"v":300,"d":"300.00"}},null,null,{"$f":"IF(E14+I14>4,0,(IF(J14+F14<5,0,(IF(L19-I16<(IF(L19<(SUM(O14:Q17)),L19,(SUM(O14:Q17)))),L19-I16, (IF(L19<(SUM(O14:Q17)),L19,(SUM(O14:Q17)))))))))","v":0}]
[]
["3.","Tage ohne                             Übernachtung:",null,null,"Tage","TN*","Tage mit                                        Übernachtung:",null,"Anzahl der Ü","TN*","Ausgaben ","in EUR",null,null,"max. möglicher Zuschuss"]
[{"$nulls":5},5,{"$nulls":4},"Fahrt-, Reise-,                     Transportkosten",{"$nulls":3},{"$f":"L22*35/100","v":0}]
["eingenommene Teilnahmebeiträge",{"$nulls":5},"EUR pro Person",null,"EUR gesamt",null,"Betreuerkosten",{"$nulls":3},{"$f":"IF((((E22*F22*5)+(I22*J22*10))*20/100)>L23,L23,(((E22*F22*5)+(I22*J22*10))*20/100))","v":0}]
[]
["Kurzbeschreibung (Inhalt, Zielgruppe, Datum von-bis)",{"$nulls":9},"weitere Ausgaben (z. B. f. Unterkunft, Programmkosten)",{"$nulls":3},{"$f":"(E22*F22*5)+(I22*J22*10)","v":0}]
[]
[{"$nulls":10},"Summe",{"$f":"SUM(L22:N25)","v":0},null,null,{"$f":"IF(E22+I22>4,0,(IF(J22+F22<5,0,(IF(L27-I24<(IF(L27<(SUM(O22:Q25)),L27,(SUM(O22:Q25)))),L27-I24, (IF(L27<(SUM(O22:Q25)),L27,(SUM(O22:Q25)))))))))","v":0}]
[]
["4.","Tage ohne                             Übernachtung:",null,null,"Tage","TN*","Tage mit                                        Übernachtung:",null,"Anzahl der Ü","TN*","Ausgaben ","in EUR",null,null,"max. möglicher Zuschuss"]
[{"$nulls":10},"Fahrt-, Reise-,                     Transportkosten",{"$nulls":3},{"$f":"L30*35/100","v":0}]
["eingenommene Teilnahmebeiträge",{"$nulls":5},"EUR pro Person",null,"EUR gesamt",null,"Betreuerkosten",{"$nulls":3},{"$f":"IF((((E30*F30*5)+(I30*J30*10))*20/100)>L31,L31,(((E30*F30*5)+(I30*J30*10))*20/100))","v":0}]
[]
["Kurzbeschreibung (Inhalt, Zielgruppe, Datum von-bis)",{"$nulls":9},"weitere Ausgaben (z. B. f. Unterkunft, Programmkosten)",{"$nulls":3},{"$f":"(E30*F30*5)+(I30*J30*10)","v":0}]
[]
[{"$nulls":10},"Summe",{"$f":"SUM(L30:N33)","v":0},null,null,{"$f":"IF(E30+I30>4,0,(IF(J30+F30<5,0,(IF(L35-I32<(IF(L35<(SUM(O30:Q33)),L35,(SUM(O30:Q33)))),L35-I32, (IF(L35<(SUM(O30:Q33)),L35,(SUM(O30:Q33)))))))))","v":0}]
[]
["5.","Tage ohne                             Übernachtung:",null,null,"Tage","TN*","Tage mit                                        Übernachtung:",null,"Anzahl der Ü","TN*","Ausgaben ","in EUR",null,null,"max. möglicher Zuschuss"]
[{"$nulls":10},"Fahrt-, Reise-,                     Transportkosten",{"$nulls":3},{"$f":"L38*35/100","v":0}]
["eingenommene Teilnahmebeiträge",{"$nulls":5},"EUR pro Person",null,"EUR gesamt",null,"Betreuerkosten",{"$nulls":3},{"$f":"IF((((E38*F38*5)+(I38*J38*10))*20/100)>L39,L39,(((E38*F38*5)+(I38*J38*10))*20/100))","v":0}]
[]
["Kurzbeschreibung (Inhalt, Zielgruppe, Datum von-bis)",{"$nulls":9},"weitere Ausgaben (z. B. f. Unterkunft, Programmkosten)",{"$nulls":3},{"$f":"(E38*F38*5)+(I38*J38*10)","v":0}]
[]
[{"$nulls":10},"Summe",{"$f":"SUM(L38:N41)","v":0},null,null,{"$f":"IF(E38+I38>4,0,(IF(J38+F38<5,0,(IF(L43-I40<(IF(L43<(SUM(O38:Q41)),L43,(SUM(O38:Q41)))),L43-I40, (IF(L43<(SUM(O38:Q41)),L43,(SUM(O38:Q41)))))))))","v":0}]
["*TN: Teilnehmer/-innen\nDie Beschreibung der Maßnahmen kann auch formlos auf einem extra Blatt erfolgen. "]